bitfinex/quotes_BTCUSD_20250910
["timestamp","ask_amount","ask_price","bid_price","bid_amount"]
[1757517948427,0.31108319,113810.0,113800.0,0.24024]
[1757517948666,0.33620977,113810.0,113800.0,0.09144]
[1757517949026,0.52999964,113810.0,113800.0,0.1728]
[1757517949248,0.52999964,113810.0,113800.0,0.1708]
[1757517949484,0.52999964,113810.0,113800.0,0.1688]
[1757517949699,0.40036581,113810.0,113800.0,0.1708]
[1757517949886,0.40036581,113810.0,113800.0,0.1688]
[1757517950110,0.40036581,113810.0,113800.0,0.1708]
[1757517950572,0.40036581,113810.0,113800.0,0.1688]
[1757517951021,0.40136581,113810.0,113800.0,0.1688]
[1757517951878,0.40336581,113810.0,113800.0,0.1688]
[1757517952449,0.66292178,113810.0,113800.0,0.1688]
[1757517952875,0.20957594,113810.0,113800.0,0.1688]
[1757517953075,0.40417084,113810.0,113800.0,0.1688]
[1757517957090,0.21082557,113810.0,113800.0,0.1688]
[1757517957277,0.40542047,113810.0,113800.0,0.34454692]
[1757517957510,0.21082557,113810.0,113800.0,0.34454692]
[1757517957725,0.40542047,113810.0,113800.0,0.34454692]
[1757517958584,0.40342047,113810.0,113800.0,0.34454692]
[1757517958972,0.40242047,113810.0,113800.0,0.34554692]
[1757517959443,0.40242047,113810.0,113800.0,0.34654692]
[1757517959671,0.40242047,113810.0,113800.0,0.1708]
[1757517959875,0.40242047,113810.0,113800.0,0.34654692]
[1757517960095,0.40242047,113810.0,113800.0,0.1708]
[1757517960541,0.20782557,113810.0,113800.0,0.34874375]
[1757517960789,0.40242047,113810.0,113800.0,0.34654692]
[1757517961219,0.40242047,113810.0,113800.0,0.1708]
[1757517961799,0.40242047,113810.0,113800.0,0.34654692]
[1757517962820,0.40242047,113810.0,113800.0,0.34861692]
[1757517963042,0.20465557,113810.0,113800.0,0.34861692]
[1757517963268,0.17827936,113810.0,113800.0,0.37656692]
[1757517963723,0.37287426,113810.0,113800.0,0.37343692]
[1757517964155,0.37583426,113810.0,113800.0,0.37343692]
[1757517964359,0.18123936,113810.0,113800.0,0.37343692]
[1757517964962,0.37583426,113810.0,113800.0,0.37343692]
[1757517965360,0.37583426,113810.0,113800.0,0.19765]
[1757517965583,0.37583426,113810.0,113800.0,0.17283]
[1757517965794,0.37583426,113810.0,113800.0,0.34857692]
[1757517966208,0.37583426,113810.0,113800.0,0.17283]
[1757517966589,0.37583426,113810.0,113800.0,0.34857692]
[1757517966861,0.17827936,113810.0,113800.0,0.34857692]
[1757517967112,0.37287426,113810.0,113800.0,0.34857692]
[1757517967832,0.37287426,113810.0,113800.0,0.40380525]
[1757517968960,0.37287426,113810.0,113800.0,0.34857692]
[1757517969191,0.17629936,113810.0,113800.0,0.58610044]
[1757517969423,0.17629936,113810.0,113800.0,0.61405044]
[1757517970266,0.00056788,113810.0,113800.0,0.61405044]
[1757517970476,0.17629936,113810.0,113800.0,0.61405044]
[1757517970702,0.17629936,113810.0,113800.0,0.70158162]
[1757517971335,0.17838936,113810.0,113800.0,0.61092044]
[1757517971550,0.37594426,113810.0,113800.0,0.58610044]
[1757517972172,0.37594426,113810.0,113800.0,0.65358044]
[1757517972409,0.37594426,113810.0,113800.0,0.32700352]
[1757517972562,0.37594426,113810.0,113800.0,0.47576352]
[1757517973813,0.37594426,113810.0,113800.0,0.3882]
[1757517974887,0.37594426,113810.0,113800.0,0.3872]
[1757517975295,0.37594426,113810.0,113800.0,0.3882]
[1757517975704,0.37594426,113810.0,113800.0,0.3872]
[1757517975907,0.37594426,113810.0,113800.0,0.3862]
[1757517976148,0.37594426,113810.0,113800.0,0.3872]
[1757517976561,0.37594426,113810.0,113800.0,0.3862]
[1757517976786,0.37694426,113810.0,113800.0,0.3862]
[1757517977331,0.37398426,113810.0,113800.0,0.56401692]
[1757517977866,0.37398426,113810.0,113800.0,0.58883692]
[1757517978070,0.17938936,113810.0,113800.0,0.59196692]
[1757517978495,0.18234936,113810.0,113800.0,0.58676692]
[1757517978714,0.17938936,113810.0,113800.0,0.58883692]
[1757517979484,0.17729936,113810.0,113800.0,0.71450507]
[1757517979688,0.00156788,113810.0,113800.0,0.71450507]
[1757517980872,0.17729936,113810.0,113800.0,0.71450507]
[1757517981088,0.00156788,113810.0,113800.0,0.71450507]
[1757517981307,0.0012784,113810.0,113800.0,0.71450507]
[1757517981521,0.17700988,113810.0,113800.0,0.56578507]
[1757517981735,0.18205988,113810.0,113800.0,0.38483815]
[1757517981917,0.18205988,113810.0,113800.0,0.53562815]
[1757517982321,0.18205988,113810.0,113800.0,0.71137507]
[1757517982548,0.18205988,113810.0,113800.0,0.53562815]
[1757517982923,0.17909988,113810.0,113800.0,0.71137507]
[1757517983627,0.0012784,113810.0,113800.0,0.71450507]
[1757517984569,0.0012784,113810.0,113800.0,0.91450507]
[1757517985620,0.0012784,113810.0,113800.0,0.91650507]
[1757517985886,0.0002784,113810.0,113800.0,0.91650507]
[1757517986092,0.0002784,113810.0,113800.0,1.31850507]
[1757517986766,0.0002784,113810.0,113800.0,1.16978507]
[1757517986976,0.0002784,113810.0,113800.0,1.31846507]
[1757517991927,0.0002784,113810.0,113800.0,1.31855507]
[1757517997543,0.0002784,113810.0,113800.0,1.31851507]
[1757517997773,0.37585478,113810.0,113800.0,0.73976507]
[1757517997944,0.18125988,113810.0,113800.0,0.88840507]
[1757517998296,0.18125988,113810.0,113800.0,0.85547044]
[1757518000138,0.37585478,113810.0,113800.0,0.24148]
[1757518000485,0.18125988,113810.0,113800.0,0.39012]
[1757518000699,0.37585478,113810.0,113800.0,0.39012]
[1757518000905,0.37585478,113810.0,113800.0,0.38812]
[1757518001312,0.37585478,113810.0,113800.0,0.39012]
[1757518001535,0.37585478,113810.0,113800.0,0.38812]
[1757518001695,0.37585478,113810.0,113800.0,0.38612]
[1757518003089,0.37585478,113810.0,113800.0,0.38812]
[1757518003309,0.37585478,113810.0,113800.0,0.08748]
[1757518003745,0.40222926,113810.0,113800.0,0.23612]
[1757518003969,0.40322926,113810.0,113800.0,0.23612]
[1757518004174,0.40322926,113810.0,113800.0,0.16864]
[1757518007136,0.20863436,113810.0,113800.0,0.185504]
[1757518007534,0.40322926,113810.0,113800.0,0.185504]
[1757518008410,0.40322926,113810.0,113800.0,0.16864]
[1757518008983,0.20863436,113810.0,113800.0,0.16864]
[1757518009182,0.40322926,113810.0,113800.0,0.16864]
[1757518009398,0.20863436,113810.0,113800.0,0.16864]
[1757518009647,0.40322926,113810.0,113800.0,0.16864]
[1757518012473,0.33834007,113810.0,113800.0,0.16864]
[1757518015632,0.33834007,113810.0,113800.0,0.20308022]
[1757518017617,0.33834007,113810.0,113800.0,0.16864]
[1757518019526,0.20863436,113810.0,113800.0,0.16864]
[1757518019733,0.20863436,113810.0,113800.0,0.17069]
[1757518019893,0.33834007,113810.0,113800.0,0.17069]
[1757518020090,0.33834007,113810.0,113800.0,0.16864]
[1757518020369,0.20863436,113810.0,113800.0,0.20339822]
[1757518020514,0.33834007,113810.0,113800.0,0.20339822]
[1757518020716,0.33834007,113810.0,113800.0,0.16864]
[1757518020927,0.20863436,113810.0,113800.0,0.16864]
[1757518021151,0.20554436,113810.0,113800.0,0.37655375]
[1757518021377,0.20554436,113810.0,113800.0,0.37117692]
[1757518021606,0.20878436,113810.0,113800.0,0.34643692]
[1757518021818,0.20878436,113810.0,113800.0,0.39897483]
[1757518022240,0.20878436,113810.0,113800.0,0.22322791]
[1757518023281,0.20338436,113810.0,113800.0,0.55215483]
[1757518023485,0.0012784,113810.0,113800.0,0.66441835]
[1757518024108,0.17700988,113810.0,113800.0,0.73185835]
[1757518024516,0.17700988,113810.0,113800.0,0.73181835]
[1757518024719,0.17900988,113810.0,113800.0,0.73181835]
[1757518024929,0.17900988,113810.0,113800.0,0.58003835]
[1757518025152,0.17900988,113810.0,113800.0,0.50035352]
[1757518025353,0.17900988,113810.0,113800.0,0.67610044]
[1757518025761,0.18224988,113810.0,113800.0,0.47356352]
[1757518026168,0.31195559,113810.0,113800.0,0.23744]
[1757518026382,0.31195559,113810.0,113800.0,0.38604]
[1757518026798,0.33832856,113810.0,113800.0,0.38604]
[1757518028472,0.33832856,113810.0,113800.0,0.3186]
[1757518029349,0.33832856,113810.0,113800.0,0.17]
[1757518029593,0.33832856,113810.0,113800.0,0.31856]
[1757518031125,0.20338285,113810.0,113800.0,0.352466]
[1757518031322,0.20538285,113810.0,113800.0,0.352466]
[1757518032260,0.20862285,113810.0,113800.0,0.352466]
[1757518033553,0.20862285,113810.0,113800.0,0.32061]
[1757518033964,0.20862285,113810.0,113800.0,0.49635692]
[1757518034182,0.20538285,113810.0,113800.0,0.32379]
[1757518034584,0.20538285,113810.0,113800.0,0.32061]
[1757518036287,0.20862285,113810.0,113800.0,0.32061]
[1757518037659,0.20862285,113810.0,113800.0,0.37303923]
[1757518038070,0.20862285,113810.0,113800.0,0.22447923]
[1757518038315,0.33832856,113810.0,113800.0,0.37098923]
[1757518038958,0.33832856,113810.0,113800.0,0.31856]
[1757518039594,0.20862285,113810.0,113800.0,0.31856]
[1757518039794,0.33832856,113810.0,113800.0,0.32061]
[1757518040224,0.33832856,113810.0,113800.0,0.31856]
[1757518040848,0.20862285,113810.0,113800.0,0.31856]
[1757518041047,0.33832856,113810.0,113800.0,0.3707841]
[1757518041666,0.20862285,113810.0,113800.0,0.3707841]
[1757518042918,0.33832856,113810.0,113800.0,0.17]
[1757518043160,0.33832856,113810.0,113800.0,0.16856]
[1757518044317,0.20862285,113810.0,113800.0,0.16856]
[1757518044452,0.33832856,113810.0,113800.0,0.16856]
[1757518046011,0.20538285,113810.0,113800.0,0.34635692]
[1757518046223,0.20338285,113810.0,113800.0,0.51433026]
[1757518046431,0.20338285,113810.0,113800.0,0.66433026]
[1757518048092,0.20538285,113810.0,113800.0,0.66433026]
[1757518049821,0.20338285,113810.0,113800.0,0.66433026]
[1757518050007,0.20338285,113810.0,113800.0,0.34002334]
[1757518050233,0.20338285,113810.0,113800.0,0.51577026]
[1757518050444,0.20338285,113810.0,113800.0,0.48854334]
[1757518051212,0.20338285,113810.0,113800.0,0.55598334]
[1757518051426,0.20338285,113810.0,113800.0,0.73173026]
[1757518052070,0.0012784,113810.0,113800.0,0.93173026]
[1757518052921,0.0012784,113810.0,113800.0,1.27173026]
[1757518053143,0.0012784,113810.0,113800.0,1.35058339]
[1757518053389,0.0002784,113810.0,113800.0,1.35058339]
[1757518053590,0.0002784,113810.0,113800.0,1.27273026]
[1757518053794,0.0002784,113810.0,113800.0,1.27373026]
[1757518054014,0.0002784,113810.0,113800.0,1.27273026]
[1757518054457,0.0002784,113810.0,113800.0,1.35358339]
[1757518054661,0.0002784,113810.0,113800.0,1.3010949]
[1757518055281,0.0002784,113810.0,113800.0,1.3010549]
[1757518055497,0.0002784,113810.0,113800.0,1.37893337]
[1757518055893,0.0002784,113810.0,113800.0,1.38093337]
[1757518056422,0.0002784,113810.0,113800.0,1.78093337]
[1757518057887,0.0002784,113810.0,113800.0,1.78169337]
[1757518059171,0.34348891,113840.0,113830.0,0.15]
[1757518059375,0.2137832,113840.0,113830.0,0.37964677]
[1757518059591,0.47518462,113840.0,113830.0,0.36678079]
[1757518059794,0.47518462,113840.0,113830.0,0.21758079]
[1757518060007,0.34547891,113840.0,113830.0,0.36686079]
[1757518060227,0.2157732,113840.0,113830.0,0.36686079]
[1757518060449,0.34657891,113840.0,113830.0,0.44551903]
[1757518061064,0.34657891,113840.0,113830.0,0.36686079]
[1757518061807,0.2168732,113840.0,113830.0,0.36686079]
[1757518061920,0.34657891,113840.0,113830.0,0.36686079]
[1757518062983,0.34562891,113840.0,113830.0,0.36881079]
[1757518063418,0.2159232,113840.0,113830.0,0.39167079]
[1757518063591,0.2159232,113840.0,113830.0,0.47920197]
[1757518064613,0.34857891,113840.0,113830.0,0.30511197]
[1757518064820,0.34857891,113840.0,113830.0,0.45427197]
[1757518065239,0.34857891,113840.0,113830.0,0.36674079]
[1757518065835,0.47828462,113840.0,113830.0,0.36670079]
[1757518066063,0.47828462,113840.0,113830.0,0.36666079]
[1757518066294,0.47828462,113840.0,113830.0,0.00014079]
[1757518066505,0.5034112,113840.0,113830.0,0.00014079]
[1757518066724,1.05682574,113840.0,113830.0,0.00014079]
[1757518066902,0.92712003,113840.0,113830.0,0.00014079]
[1757518068395,0.90739843,113840.0,113830.0,0.00014079]
[1757518071508,0.64798701,113840.0,113830.0,0.00014079]
[1757518071708,0.90739843,113840.0,113830.0,0.00014079]
[1757518074480,1.03696613,113840.0,113830.0,0.00014079]
[1757518074912,0.5391516,113840.0,113830.0,0.00014079]
[1757518075116,0.1991516,113840.0,113830.0,0.00209079]
[1757518075419,0.39364116,113840.0,113830.0,0.00209079]
[1757518076039,0.39364116,113840.0,113830.0,0.00014079]
[1757518076242,0.1991516,113840.0,113830.0,0.00014079]
[1757518076438,0.58813072,113840.0,113830.0,0.14894079]
[1757518076642,0.58813072,113840.0,113830.0,0.14890079]
[1757518077884,0.1991516,113840.0,113830.0,0.14890079]
[1757518078106,0.58813072,113840.0,113830.0,0.14890079]
[1757518078502,0.58813072,113840.0,113830.0,0.03260241]
[1757518078714,0.1991516,113840.0,113830.0,0.14890079]
[1757518078875,0.1991516,113840.0,113830.0,0.00014079]
[1757518079076,0.58813072,113840.0,113830.0,0.14886079]
[1757518080576,0.58813072,113840.0,113830.0,0.15084079]
[1757518080977,0.39364116,113840.0,113830.0,0.14886079]
[1757518081146,0.39364116,113840.0,113830.0,0.18162945]
[1757518081557,0.39364116,113840.0,113830.0,0.18360945]
[1757518081760,0.39364116,113840.0,113830.0,0.20976945]
[1757518081761,0.1942116,113840.0,113830.0,0.20976945]
[1757518082470,0.1942116,113840.0,113830.0,0.38547005]
[1757518083199,0.38870116,113840.0,113830.0,0.38547005]
[1757518083444,0.1942116,113840.0,113830.0,0.38547005]
[1757518083640,0.1942116,113840.0,113830.0,0.53547005]
[1757518086064,0.02946346,113840.0,113830.0,0.82299357]
[1757518086196,0.0031,113840.0,113830.0,1.27427357]
[1757518086602,0.0031,113840.0,113830.0,1.42283357]
[1757518087292,0.0031,113840.0,113830.0,1.61427357]
[1757518087432,0.0031,113840.0,113830.0,1.76279357]
[1757518087638,0.0021,113840.0,113830.0,1.76279357]
[1757518088498,0.0001,113840.0,113830.0,1.76279357]
[1757518088870,0.0011,113840.0,113830.0,1.76279357]
[1757518089284,0.0001,113840.0,113830.0,1.76279357]
[1757518089491,0.0001,113840.0,113830.0,1.76479357]
[1757518089752,0.0001,113840.0,113830.0,1.61627357]
[1757518089940,0.0001,113840.0,113830.0,1.76675357]
[1757518100511,0.0001,113840.0,113830.0,1.61827357]
[1757518100716,0.0001,113840.0,113830.0,1.76675357]
[1757518103697,0.0001,113840.0,113830.0,1.79188015]
[1757518103904,0.0001,113840.0,113830.0,1.89711303]
[1757518104788,0.0001,113850.0,113840.0,0.17568517]
[1757518104994,0.0001,113850.0,113840.0,0.59277987]
[1757518105217,0.0001,113850.0,113840.0,0.59475987]
[1757518105447,0.0001,113850.0,113840.0,0.99475987]
[1757518105669,0.0001,113850.0,113840.0,1.02111427]
[1757518106100,0.0001,113850.0,113840.0,0.87367427]
[1757518106524,0.0001,113850.0,113840.0,1.02311427]
[1757518106968,0.0001,113850.0,113840.0,1.02321427]
[1757518111557,0.0001,113850.0,113840.0,1.10209274]
[1757518112641,0.0001,113850.0,113840.0,1.36929274]
[1757518112879,0.0001,113850.0,113840.0,1.73241932]
[1757518113110,0.0001,113850.0,113840.0,1.73441932]
[1757518113342,0.0001,113850.0,113840.0,1.73427742]
[1757518113579,1e-08,113850.0,113840.0,1.56707742]
[1757518113810,1e-08,113850.0,113840.0,1.59864953]
[1757518114025,1e-08,113850.0,113840.0,1.60064953]
[1757518114672,1e-08,113850.0,113840.0,1.49034085]
[1757518114929,1e-08,113850.0,113840.0,1.50792085]
[1757518115254,1e-08,113850.0,113840.0,1.62222953]
[1757518115458,1e-08,113850.0,113840.0,1.47378953]
[1757518115642,1e-08,113850.0,113840.0,1.62218953]
[1757518116173,1e-08,113850.0,113840.0,1.57218953]
[1757518116375,1e-08,113850.0,113840.0,1.62218953]
[1757518116617,1e-08,113850.0,113840.0,1.51188085]
[1757518117592,1e-08,113850.0,113840.0,1.62218953]
[1757518118077,1e-08,113850.0,113840.0,1.88938953]
[1757518121481,1e-08,113850.0,113840.0,1.51188085]
[1757518122822,1e-08,113850.0,113840.0,1.60435085]
[1757518123301,1e-08,113850.0,113840.0,1.87155085]
[1757518123515,1e-08,113850.0,113840.0,1.98185953]
[1757518124173,7.075e-05,113850.0,113840.0,1.98185953]
[1757518125241,1e-08,113850.0,113840.0,1.98178879]
[1757518126839,1e-08,113850.0,113840.0,1.83338879]
[1757518126974,1e-08,113850.0,113840.0,2.03447879]
[1757518128212,1e-08,113850.0,113840.0,1.88611879]
[1757518128414,1e-08,113850.0,113840.0,2.03447879]
[1757518128646,1e-08,113850.0,113840.0,1.88611879]
[1757518128913,1e-08,113850.0,113840.0,1.83338879]
[1757518129089,1e-08,113850.0,113840.0,1.98174879]
[1757518129701,1e-08,113850.0,113840.0,1.99174879]
[1757518131092,1e-08,113850.0,113840.0,1.84338879]
[1757518131305,1e-08,113850.0,113840.0,1.99174879]
[1757518133517,1e-08,113850.0,113840.0,2.24454879]
[1757518135165,1e-08,113850.0,113840.0,2.24450879]
[1757518136487,1e-08,113850.0,113840.0,2.13420011]
[1757518138485,0.07061254,113890.0,113880.0,1.06562346]
[1757518138686,0.07061254,113890.0,113880.0,1.45639816]
[1757518138998,0.07061254,113890.0,113880.0,1.45852816]
[1757518139199,0.07061254,113890.0,113880.0,1.88548816]
[1757518139606,0.0001,113890.0,113880.0,1.88548816]
[1757518139744,0.0001,113890.0,113880.0,1.88561167]
[1757518140352,0.0001,113890.0,113880.0,1.88238167]
[1757518140571,0.00318,113890.0,113880.0,1.88238167]
[1757518140768,0.00318,113890.0,113880.0,1.73406167]
[1757518140980,0.18201804,113890.0,113880.0,1.51652167]
[1757518141178,0.3114784,113890.0,113880.0,1.34089821]
[1757518141374,0.18201804,113890.0,113880.0,1.34089821]
[1757518141588,0.3114784,113890.0,113880.0,0.30504703]
[1757518141805,0.3114784,113890.0,113880.0,0.45336703]
[1757518144445,0.18201804,113890.0,113880.0,0.45336703]
[1757518144653,0.3114784,113890.0,113880.0,0.45336703]
[1757518144853,0.18201804,113890.0,113880.0,0.45336703]
[1757518145118,0.3114784,113890.0,113880.0,0.53713558]
[1757518148496,0.18201804,113890.0,113880.0,0.53713558]
[1757518148702,0.3114784,113890.0,113880.0,0.53713558]
[1757518149538,0.3114784,113890.0,113880.0,0.45336703]
[1757518150571,0.18201804,113890.0,113880.0,0.45336703]
[1757518150756,0.3114784,113890.0,113880.0,0.45336703]
[1757518150979,0.17562346,113880.0,113870.0,0.58431846]
[1757518151111,0.17770346,113880.0,113870.0,0.88968564]
[1757518151329,0.17770346,113880.0,113870.0,0.97721682]
[1757518152058,0.17770346,113880.0,113870.0,0.97821682]
[1757518152262,0.17770346,113880.0,113870.0,0.98144682]
[1757518153146,0.17770346,113880.0,113870.0,0.97821682]
[1757518153773,0.17770346,113880.0,113870.0,0.65429835]
[1757518153973,0.18093346,113880.0,113870.0,0.65429835]
[1757518154180,0.18093346,113880.0,113870.0,0.71504717]
[1757518154893,0.17770346,113880.0,113870.0,0.89068605]
[1757518156496,0.17770346,113880.0,113870.0,0.71504717]
[1757518156700,0.18093346,113880.0,113870.0,0.71504717]
[1757518157305,0.18093346,113880.0,113870.0,0.89068605]
[1757518158123,0.18093346,113880.0,113870.0,0.71504717]
[1757518158332,0.18093346,113880.0,113870.0,0.80208047]
[1757518158555,0.18093346,113880.0,113870.0,0.80004047]
[1757518159173,0.18093346,113880.0,113870.0,0.80208047]
[1757518160236,0.17770346,113880.0,113870.0,0.80208047]
[1757518161325,0.18093346,113880.0,113870.0,0.40208047]
[1757518161751,0.18093346,113880.0,113870.0,0.80208047]
[1757518163993,0.16093346,113880.0,113870.0,0.80208047]
[1757518164812,0.16093346,113880.0,113870.0,0.80004047]
[1757518164992,0.16093346,113880.0,113870.0,0.40004047]
[1757518165578,0.16093346,113880.0,113870.0,0.80004047]
[1757518165834,0.41985418,113880.0,113870.0,0.06852366]
[1757518166034,0.29039382,113880.0,113870.0,0.21676366]
[1757518168148,0.41985418,113880.0,113870.0,0.06852366]
[1757518168373,0.41985418,113880.0,113870.0,0.21676366]
[1757518168759,0.41985418,113880.0,113870.0,0.21686366]
[1757518168999,0.16093346,113880.0,113870.0,0.21686366]
[1757518169226,0.41985418,113880.0,113870.0,0.21686366]
[1757518171998,0.29039382,113880.0,113870.0,0.21686366]
[1757518176918,0.28539382,113880.0,113870.0,0.21686366]
[1757518180012,0.28539382,113880.0,113870.0,0.23943335]
[1757518180231,0.15593346,113880.0,113870.0,0.21686366]
[1757518180855,0.15593346,113880.0,113870.0,0.21889366]
[1757518181646,0.15593346,113880.0,113870.0,0.39453254]
[1757518181851,0.15270346,113880.0,113870.0,0.39453254]
[1757518182262,0.15591346,113880.0,113870.0,0.21889366]
[1757518182462,0.15591346,113880.0,113870.0,0.21686366]
[1757518186584,0.15591346,113880.0,113870.0,0.21889366]
[1757518187051,0.15591346,113880.0,113870.0,0.21678366]
[1757518187968,0.15591346,113880.0,113870.0,0.06862366]
[1757518188428,0.15591346,113880.0,113870.0,0.21678366]
[1757518188689,0.28537382,113880.0,113870.0,0.21678366]
[1757518191362,0.15591346,113880.0,113870.0,0.21678366]
[1757518191664,0.28537382,113880.0,113870.0,0.06862366]
[1757518191829,0.28537382,113880.0,113870.0,0.21678366]
[1757518194069,0.31172962,113880.0,113870.0,0.21678366]
[1757518194550,0.37656419,113880.0,113870.0,0.21678366]
[1757518194787,0.37656419,113880.0,113870.0,0.21674366]
[1757518195041,0.57085912,113880.0,113870.0,0.21674366]
[1757518195474,0.57085912,113880.0,113870.0,0.14934366]
[1757518197256,0.37656419,113880.0,113870.0,0.14934366]
[1757518198103,0.57085912,113880.0,113870.0,0.14934366]
[1757518199253,0.64550584,113880.0,113870.0,0.14934366]
[1757518200777,0.57085912,113880.0,113870.0,0.14934366]
[1757518202735,0.18226926,113880.0,113870.0,0.14934366]
[1757518202907,0.37656419,113880.0,113870.0,0.14934366]
[1757518203486,0.57085912,113880.0,113870.0,0.14934366]
[1757518203666,0.37656419,113880.0,113870.0,0.14934366]
[1757518204090,0.57085912,113880.0,113870.0,0.14934366]
[1757518205556,0.6583903,113880.0,113870.0,0.14934366]
[1757518205841,0.57085912,113880.0,113870.0,0.14934366]
[1757518206058,0.57085912,113880.0,113870.0,0.14930366]
[1757518206296,1.21780415,113880.0,113870.0,0.00122366]
[1757518206792,1.21790415,113880.0,113870.0,0.00022366]
[1757518207477,1.21990415,113880.0,113870.0,0.00022366]
[1757518207698,1.30743533,113880.0,113870.0,0.00122366]
[1757518208400,1.45551533,113880.0,113870.0,0.00122366]
[1757518208870,1.45551533,113880.0,113870.0,0.00012366]
[1757518209318,1.45651533,113880.0,113870.0,0.00012366]
[1757518210525,1.30843533,113880.0,113870.0,0.00012366]
[1757518210731,1.52174277,113880.0,113870.0,0.00012366]
[1757518210952,0.79077798,113880.0,113870.0,0.00012366]
[1757518211174,1.32744784,113880.0,113870.0,0.00012366]
[1757518211843,1.17936784,113880.0,113870.0,0.00012366]
[1757518212059,1.32744784,113880.0,113870.0,0.00012366]
[1757518212932,1.52174277,113880.0,113870.0,0.00012366]
[1757518213627,1.32744784,113880.0,113870.0,0.00012366]
[1757518214072,1.17936784,113880.0,113870.0,0.00012366]
[1757518214301,1.32744784,113880.0,113870.0,0.00012366]
[1757518214952,0.79077798,113880.0,113870.0,0.00012366]
[1757518215176,1.17936784,113880.0,113870.0,0.00012366]
[1757518215403,0.63802702,113880.0,113870.0,0.00012366]
[1757518215639,0.83232195,113880.0,113870.0,0.00012366]
[1757518215860,1.02651688,113880.0,113870.0,0.00012366]
[1757518216522,0.63792702,113880.0,113870.0,0.00012366]
[1757518216741,1.02651688,113880.0,113870.0,0.00012366]
[1757518217684,1.17459688,113880.0,113870.0,0.00012366]
[1757518217906,0.78600702,113880.0,113870.0,0.00022366]
[1757518218125,1.17459688,113880.0,113870.0,0.00022366]
[1757518218577,1.17455688,113880.0,113870.0,0.00022366]
[1757518220607,0.91385912,113880.0,113870.0,0.00022366]
[1757518220834,0.71956419,113880.0,113870.0,0.00022366]
[1757518221063,0.52760419,113880.0,113870.0,0.00022366]
[1757518221499,0.72189912,113880.0,113870.0,0.00022366]
[1757518221699,0.33330926,113880.0,113870.0,0.00022366]
[1757518221909,0.52760419,113880.0,113870.0,0.00022366]
[1757518222192,0.72189912,113880.0,113870.0,0.00022366]
[1757518223374,0.8094303,113880.0,113870.0,0.00022366]
[1757518224539,1.45637533,113880.0,113870.0,0.00022366]
[1757518226885,0.54078089,113860.0,113850.0,0.0001]
[1757518227108,1.3592292,113860.0,113850.0,0.00024079]
[1757518227348,1.3612092,113860.0,113850.0,0.00024079]
[1757518227549,0.79044309,113860.0,113850.0,0.00024079]
[1757518227766,1.39979352,113860.0,113850.0,0.00024079]
[1757518228265,1.40079352,113860.0,113850.0,0.00024079]
[1757518228461,1.39979352,113860.0,113850.0,0.00024079]
[1757518228895,1.40679352,113860.0,113850.0,0.00024079]
[1757518229165,1.21249859,113860.0,113850.0,0.00024079]
[1757518229374,0.66691005,113860.0,113850.0,0.00024079]
[1757518229604,1.20353991,113860.0,113850.0,0.00024079]
[1757518230962,1.39783484,113860.0,113850.0,0.00024079]
[1757518232996,1.46381119,113860.0,113850.0,0.00024079]
[1757518237179,1.45867119,113860.0,113850.0,0.00024079]
[1757518237415,1.39816237,113860.0,113850.0,0.00024079]
[1757518237680,1.54620237,113860.0,113850.0,0.00024079]
[1757518238534,0.96331758,113860.0,113850.0,0.00024079]
[1757518238753,1.54620237,113860.0,113850.0,0.00024079]
[1757518239386,1.56253157,113860.0,113850.0,0.00024079]
[1757518240453,1.41449157,113860.0,113850.0,0.00024079]
[1757518240670,1.56253157,113860.0,113850.0,0.00024079]
[1757518241103,1.56253157,113860.0,113850.0,1e-08]
[1757518242205,2.15153981,113860.0,113850.0,1e-08]
[1757518242415,2.27665432,113860.0,113850.0,1e-08]
[1757518242632,2.30362327,113860.0,113850.0,1e-08]
[1757518243324,2.27850876,113860.0,113850.0,1e-08]
[1757518243545,1.69562397,113860.0,113850.0,1e-08]
[1757518243774,1.54758397,113860.0,113850.0,1e-08]
[1757518243989,1.69562397,113860.0,113850.0,1e-08]
[1757518244222,1.64562397,113860.0,113850.0,1e-08]
[1757518244447,2.30362327,113860.0,113850.0,1e-08]
[1757518246122,2.30361717,113860.0,113850.0,1e-08]
[1757518246554,2.30820416,113860.0,113850.0,1e-08]
[1757518247669,0.54082718,113830.0,113820.0,1e-08]
[1757518247947,1.38456337,113830.0,113820.0,1e-08]
[1757518248186,0.80167858,113830.0,113820.0,1e-08]
[1757518248399,0.83417245,113830.0,113820.0,1e-08]
[1757518248802,0.84312154,113830.0,113820.0,1e-08]
[1757518249485,0.84410281,113830.0,113820.0,1e-08]
[1757518251066,0.84410281,113830.0,113820.0,0.00200001]
[1757518251500,1.4269876,113830.0,113820.0,0.00200001]
[1757518252557,1.08465267,113830.0,113820.0,0.00200001]
[1757518252767,1.23269267,113830.0,113820.0,0.00200001]
[1757518252972,1.29754701,113830.0,113820.0,0.00200001]
[1757518253208,0.91711481,113830.0,113820.0,0.00200001]
[1757518253424,1.14950701,113830.0,113820.0,0.00200001]
[1757518253623,1.29754701,113830.0,113820.0,0.00200001]
[1757518253850,1.14950701,113830.0,113820.0,0.00200001]
[1757518254060,1.29754701,113830.0,113820.0,0.00200001]
[1757518254270,1.30570665,113830.0,113820.0,0.00200001]
[1757518254901,1.29754701,113830.0,113820.0,0.00200001]
[1757518255336,1.0781255,113830.0,113820.0,0.00200001]
[1757518255552,1.27242043,113830.0,113820.0,0.00200001]
[1757518255753,1.23269267,113830.0,113820.0,0.00200001]
[1757518256445,1.10352283,113830.0,113820.0,0.00200001]
[1757518257386,1.17650393,113830.0,113820.0,0.00200001]
[1757518260445,1.176513,113830.0,113820.0,0.00200001]
[1757518261132,1.028473,113830.0,113820.0,0.00200001]
[1757518261342,1.176553,113830.0,113820.0,0.00200001]
[1757518263071,0.34643039,113830.0,113820.0,0.00200001]
[1757518263310,0.95605412,113830.0,113820.0,0.00200001]
[1757518263552,0.80797412,113830.0,113820.0,0.00200001]
[1757518263759,0.95605412,113830.0,113820.0,0.00200001]
[1757518264404,1.08576413,113830.0,113820.0,0.00200001]
[1757518264838,1.17329531,113830.0,113820.0,0.00200001]
[1757518266770,0.67826411,113830.0,113820.0,0.00200001]
[1757518266982,0.95605412,113830.0,113820.0,0.00200001]
[1757518267847,0.82634411,113830.0,113820.0,0.00200001]
[1757518268069,0.95605412,113830.0,113820.0,0.00200001]
[1757518268504,0.56561401,113830.0,113820.0,0.00200001]
[1757518268749,0.84336402,113830.0,113820.0,0.00200001]
[1757518268956,0.9308952,113830.0,113820.0,0.00200001]
[1757518272274,0.93908103,113830.0,113820.0,0.00200001]
[1757518272529,0.79104103,113830.0,113820.0,0.00200001]
[1757518272745,0.93908103,113830.0,113820.0,0.00200001]
[1757518272988,0.9308952,113830.0,113820.0,0.00200001]
[1757518273403,1.06060521,113830.0,113820.0,0.00200001]
[1757518273640,1.17325531,113830.0,113820.0,0.00200001]
[1757518273850,1.18144247,113830.0,113820.0,0.00200001]